bitfinex-derivatives/quotes_ETHF0:USTF0_20240818
["timestamp","ask_amount","ask_price","bid_price","bid_amount"]
[1723945913703,1.4554,2608.6,2608.3,1.0042822]
[1723945913905,1.8147,2608.5,2608.3,1.0042822]
[1723945914208,1.8147,2608.5,2608.2,4.2120822]
[1723945914414,1.103,2608.3,2608.2,4.2120822]
[1723945914613,1.103,2608.3,2608.2,6.62996879]
[1723945916213,1.103,2608.3,2608.2,6.12929606]
[1723945917907,1.103,2608.3,2608.2,5.1248995]
[1723945918115,1.103,2608.3,2608.2,6.62996879]
[1723945919007,1.103,2608.3,2608.2,6.63159821]
[1723945919207,1.103,2608.4,2608.2,6.63159821]
[1723945919412,1.103,2608.4,2608.3,1.00447302]
[1723945921114,1.103,2608.4,2608.2,4.21227302]
[1723945921319,5.5116,2608.3,2608.2,3.2078]
[1723945921522,1.678,2608.3,2608.2,3.2078]
[1723945921711,10.5116,2608.3,2608.2,3.2078]
[1723945923033,5.5116,2608.3,2608.2,3.2078]
[1723945925219,10.5116,2608.3,2608.2,3.2078]
[1723945929227,10.5116,2608.3,2608.0,3.21271998]
[1723945929528,1.103,2608.1,2608.0,3.21271998]
[1723945929933,4.9374,2608.1,2608.0,3.21271998]
[1723945931324,5.3123,2608.1,2608.0,3.21271998]
[1723945940941,5.88735,2608.1,2608.0,3.21271998]
[1723945941134,7.2958,2608.6,2608.0,0.00491998]
[1723945941331,1.103,2608.1,2608.0,0.00491998]
[1723945943836,1.8272,2608.1,2608.0,0.00491998]
[1723945945638,0.7242,2608.1,2608.0,0.00491998]
[1723945945842,1.8272,2608.1,2608.0,0.00491998]
[1723945946232,1.4649,2608.1,2608.0,0.00491998]
[1723945947359,1.103,2608.1,2608.0,0.00491998]
[1723945948340,1.8474,2608.1,2608.0,0.00491998]
[1723945949343,4.088,2608.6,2608.0,4.843793]
[1723945949536,1.103,2608.4,2608.2,3.2078]
[1723945949735,1.103,2608.4,2608.0,1.009393]
[1723945949736,1.67798,2608.4,2608.0,1.009393]
[1723945949935,1.103,2608.2,2608.0,1.009393]
[1723945950138,1.103,2608.2,2608.0,0.00491998]
[1723945950433,1.103,2608.2,2608.0,4.843793]
[1723945950637,1.103,2608.2,2608.0,3.83931998]
[1723945950833,4.088,2608.6,2608.1,12.5227755]
[1723945951139,4.088,2608.6,2608.5,3.2078]
[1723945952343,1.103,2608.7,2608.5,3.2078]
[1723945952658,1.103,2608.7,2608.6,0.3538]
[1723945953146,0.57494,2608.6,2608.5,3.2078]
[1723945953346,0.57494,2608.6,2608.4,0.3466]
[1723945953644,0.3566,2608.7,2608.4,0.3466]
[1723945953847,1.103,2608.5,2608.4,0.3466]
[1723945954036,1.103,2608.5,2608.4,3.5544]
[1723945956441,0.3566,2609.0,2608.5,0.57496]
[1723945956636,0.3566,2609.0,2608.7,3.2078]
[1723945957051,0.3566,2609.0,2608.8,0.3677]
[1723945959053,0.92684,2609.1,2608.8,0.3677]
[1723945959251,1.103,2608.9,2608.8,0.3677]
[1723945962648,1.67787,2608.9,2608.8,0.3677]
[1723945962845,2.02877,2608.9,2608.8,0.3677]
[1723945963444,2.02877,2608.9,2608.6,0.3498]
[1723945963445,2.02878,2608.9,2608.6,0.3681]
[1723945963646,1.103,2608.7,2608.6,0.3681]
[1723945966658,0.3493,2608.7,2608.6,0.3681]
[1723945970658,0.7094,2608.7,2608.6,0.3681]
[1723945974657,1.4523,2608.7,2608.6,0.3681]
[1723945975656,1.103,2608.7,2608.6,0.3681]
[1723945979152,1.103,2608.7,2608.6,3.5759]
[1723945979851,1.103,2608.7,2608.6,0.3681]
[1723945980562,1.103,2608.7,2608.6,3.5759]
[1723945980858,1.103,2608.7,2608.6,3.2078]
[1723945981063,1.103,2608.7,2608.0,2.00559825]
[1723945981064,4.9366,2608.7,2608.1,0.3779]
[1723945981255,3.5529,2608.8,2608.0,0.00491998]
[1723945981256,1.103,2608.2,2608.0,0.00491998]
[1723945981560,0.7446,2608.1,2608.0,0.00491998]
[1723945981761,1.0897,2608.1,2608.0,0.00491998]
[1723945983955,0.7446,2608.1,2608.0,0.00491998]
[1723945985659,1.31965,2608.1,2608.0,0.00491998]
[1723945985965,5.15405,2608.1,2608.0,0.00491998]
[1723945987266,1.31965,2608.1,2608.0,0.00491998]
[1723945992963,0.7446,2608.1,2608.0,0.00491998]
[1723945993164,1.8476,2608.1,2608.0,0.00491998]
[1723945994371,1.8476,2608.1,2608.0,3.83931998]
[1723945994578,1.103,2608.2,2608.0,7.04711998]
[1723945994873,1.103,2608.2,2608.1,0.3561]
[1723945995073,1.103,2608.2,2608.1,4.1905]
[1723946001761,1.103,2608.2,2608.1,0.3561]
[1723946002571,1.4586,2608.2,2608.1,0.3561]
[1723946005564,2.03363,2608.2,2608.0,0.00491998]
[1723946005877,1.8432,2608.1,2608.0,0.00491998]
[1723946006674,2.41825,2608.1,2608.0,0.00491998]
[1723946016995,5.14965,2608.1,2608.0,0.00491998]
[1723946017285,2.41825,2608.1,2608.0,0.00491998]
[1723946018170,1.8432,2608.1,2608.0,0.00491998]
[1723946023980,2.41825,2608.1,2608.0,0.00491998]
[1723946024483,1.8432,2608.1,2608.0,0.00491998]
[1723946026484,2.41825,2608.1,2608.0,0.00491998]
[1723946028190,0.7402,2608.1,2608.0,0.00491998]
[1723946028508,1.8432,2608.1,2608.0,0.00491998]
[1723946030397,0.57503,2608.2,2608.0,0.00491998]
[1723946030593,1.8243,2608.1,2608.0,0.00491998]
[1723946032183,2.1732,2608.1,2608.0,0.00491998]
[1723946033300,2.74825,2608.1,2608.0,0.00491998]
[1723946046312,1.8243,2608.1,2608.0,0.00491998]
[1723946046507,1.103,2608.2,2608.0,3.83931998]
[1723946046705,1.103,2608.2,2608.0,0.75671998]
[1723946049012,0.7353,2608.4,2608.0,0.75671998]
[1723946049315,1.103,2608.2,2608.0,0.75671998]
[1723946057114,1.103,2608.2,2608.0,1.76037966]
[1723946059418,0.3569,2608.4,2608.0,6.16983966]
[1723946059621,1.103,2608.3,2608.1,1.00365968]
[1723946060014,1.103,2608.3,2608.2,0.3581]
[1723946060413,1.4599,2608.4,2608.2,4.1917]
[1723946060620,1.4599,2608.4,2608.2,0.3581]
[1723946065812,1.4599,2608.4,2608.2,1.36175968]
[1723946066013,1.4599,2608.4,2608.2,0.3581]
[1723946074119,0.3765,2608.3,2608.2,0.3581]
[1723946074519,0.3765,2608.3,2608.2,4.1917]
[1723946075529,0.3765,2608.3,2608.2,0.3581]
[1723946075831,0.3765,2608.3,2608.2,4.1917]
[1723946076933,1.4599,2608.4,2608.2,4.1917]
[1723946077124,1.4599,2608.4,2608.2,0.3581]
[1723946077628,0.3569,2608.4,2608.2,0.3581]
[1723946077820,0.3614,2608.5,2608.2,0.3581]
[1723946077821,0.3614,2608.5,2608.3,4.21145968]
[1723946079627,0.3614,2608.5,2608.3,1.00365968]
[1723946079822,0.3614,2608.5,2608.3,3.2078]
[1723946080026,0.3614,2608.5,2608.3,4.21145968]
[1723946082137,0.722,2608.5,2608.3,3.2078]
[1723946082432,2.39997,2608.5,2608.2,2.46475968]
[1723946083145,1.825,2608.5,2608.2,2.46475968]
[1723946085638,1.825,2608.5,2608.3,1.00365968]
[1723946086736,1.825,2608.5,2608.2,2.46475968]
[1723946090634,1.825,2608.5,2608.3,1.00365968]
[1723946090840,1.825,2608.5,2608.2,2.46475968]
[1723946091046,1.825,2608.5,2608.3,3.2078]
[1723946091338,1.4644,2608.5,2608.2,2.46475968]
[1723946091650,1.4644,2608.5,2608.3,4.21145968]
[1723946092942,0.3614,2608.5,2608.3,4.21145968]
[1723946096746,0.3614,2608.5,2608.4,1.00365968]
[1723946098750,0.3614,2608.5,2608.3,1.00365968]
[1723946099349,0.3614,2608.5,2608.4,1.00365968]
[1723946099644,0.3614,2608.5,2608.2,2.96779871]
[1723946099645,0.3614,2608.5,2608.3,1.00365968]
[1723946099846,0.3614,2608.5,2608.3,4.21145968]
[1723946100048,0.3614,2608.5,2608.4,1.00365968]
[1723946101340,0.3614,2608.5,2608.3,4.21145968]
[1723946101536,0.3614,2608.5,2608.4,1.00365968]
[1723946102250,0.3614,2608.5,2608.3,1.00365968]
[1723946102447,0.3479,2608.4,2608.2,2.96779871]
[1723946102674,0.3479,2608.4,2608.3,1.91704287]
[1723946102957,0.3479,2608.4,2608.3,1.00464149]
[1723946103349,0.3479,2608.4,2608.3,2.92169613]
[1723946103642,0.3479,2608.4,2608.3,2.92180596]
[1723946103848,0.3479,2608.4,2608.3,1.00475132]
[1723946104052,1.4509,2608.4,2608.2,1.36285132]
[1723946105555,1.4509,2608.4,2608.3,1.00475132]
[1723946106350,1.4509,2608.4,2608.2,1.36285132]
[1723946107646,1.103,2608.3,2608.2,1.00475132]
[1723946107854,1.67802,2608.3,2608.0,4.2174713]
[1723946108057,1.103,2608.2,2608.0,4.2174713]
[1723946108249,0.3638,2608.1,2608.0,4.2174713]
[1723946108453,0.7288,2608.1,2608.0,4.2174713]
[1723946109247,0.7288,2608.1,2608.0,3.21271998]
[1723946110763,0.7288,2608.1,2608.0,4.2174713]
[1723946112556,0.7288,2608.1,2608.0,3.21271998]
[1723946113161,0.7288,2608.1,2608.0,4.2174713]
[1723946113357,0.7288,2608.1,2608.0,3.21271998]
[1723946113652,1.103,2608.3,2608.0,5.8955313]
[1723946113858,1.103,2608.4,2608.1,2.10775132]
[1723946114060,1.103,2608.4,2608.1,1.103]
[1723946114255,1.103,2608.4,2608.2,0.365]
[1723946119055,2.1894,2608.5,2608.2,0.365]
[1723946119255,2.1894,2608.5,2608.2,1.36975132]
[1723946119762,1.8395,2608.5,2608.2,1.36975132]
[1723946120157,1.8395,2608.5,2608.3,1.00475132]
[1723946127583,1.8395,2608.5,2608.3,2.10775132]
[1723946128977,1.8395,2608.5,2608.3,1.103]
[1723946129271,1.8395,2608.5,2608.3,2.10775132]
[1723946131459,1.8395,2608.5,2608.3,1.103]
[1723946131664,1.8395,2608.5,2608.3,4.3108]
[1723946131860,1.8395,2608.5,2608.3,2.10775132]
[1723946132065,1.8395,2608.5,2608.3,1.103]
[1723946132371,1.8395,2608.5,2608.3,2.10775132]
[1723946132677,1.8395,2608.5,2608.3,1.103]
[1723946136476,0.3545,2608.4,2608.3,1.103]
[1723946136678,0.3545,2608.4,2608.2,1.36975132]
[1723946137278,0.3545,2608.4,2608.3,1.00475132]
[1723946137476,0.3545,2608.4,2608.2,1.36975132]
[1723946139080,0.3545,2608.4,2608.3,1.00475132]
[1723946139288,1.8395,2608.5,2608.3,1.00475132]
[1723946140073,1.8395,2608.5,2608.2,1.36975132]
[1723946140274,1.8395,2608.5,2608.3,1.00475132]
[1723946148880,1.4733,2608.5,2608.3,1.00475132]
[1723946149186,0.3478,2608.7,2608.4,1.00475132]
[1723946149386,0.3478,2608.7,2608.5,0.3548]
[1723946150981,0.7379,2608.9,2608.6,1.103]
[1723946151184,0.7379,2608.9,2608.6,2.10775132]
[1723946151786,0.7379,2608.9,2608.7,1.103]
[1723946151988,0.3589,2608.9,2608.8,4.3108]
[1723946152179,0.3589,2608.9,2608.8,6.03645132]
[1723946152589,0.3589,2608.9,2608.8,7.9530286]
[1723946152789,0.3682,2609.1,2608.8,11.78582481]
[1723946153087,0.3682,2609.1,2609.0,1.103]
[1723946154789,0.721,2609.1,2608.9,1.103]
[1723946159210,0.37129145,2609.2,2608.9,1.103]
[1723946159420,0.37129145,2609.2,2609.0,1.103]
[1723946159907,0.37129145,2609.2,2609.1,0.3522]
[1723946160907,0.00909145,2609.2,2609.1,1.4552]
[1723946161111,0.00909145,2609.2,2609.1,5.86283]
[1723946161901,0.00909145,2609.2,2609.1,4.185]
[1723946162218,0.00909145,2609.2,2609.1,5.288]
[1723946164208,0.00909145,2609.2,2609.1,1.4552]
[1723946164412,0.00909145,2609.2,2609.1,5.288]
[1723946164616,0.00909145,2609.2,2609.1,1.4552]
[1723946164914,0.00909145,2609.2,2609.1,5.288]
[1723946165104,0.00909145,2609.2,2609.1,1.4552]
[1723946166211,0.00909145,2609.2,2609.1,5.288]
[1723946166513,0.00909145,2609.2,2609.1,1.4552]
[1723946166816,0.00909145,2609.2,2609.1,5.288]
[1723946168110,0.00909145,2609.2,2609.1,1.4552]
[1723946168411,0.00909145,2609.2,2609.1,5.288]
[1723946169108,0.00909145,2609.2,2609.1,5.86283]
[1723946171817,0.00051173,2609.2,2609.1,5.86283]
[1723946172006,0.00051173,2609.2,2609.1,14.88670451]
[1723946172199,0.00051173,2609.2,2609.1,17.80715273]
[1723946172405,0.00051173,2609.2,2609.1,16.8028875]
[1723946172606,0.00051173,2609.2,2609.1,18.30958621]
[1723946172918,0.00051173,2609.2,2609.1,17.80403654]
[1723946173114,0.00051173,2609.2,2609.1,16.8028875]
[1723946173320,0.00051173,2609.2,2609.1,17.80402941]
[1723946173615,0.00051173,2609.2,2609.1,17.80386043]
[1723946173813,0.7049,2609.8,2609.1,17.80386043]
[1723946173814,0.7049,2609.8,2609.5,0.57474]
[1723946174008,0.7049,2609.8,2609.7,1.103]
[1723946174225,0.3623,2609.8,2609.7,1.103]
[1723946174415,0.3623,2609.8,2609.7,1.451]
[1723946174807,0.36700617,2609.8,2609.7,1.451]
[1723946175311,0.00470617,2609.8,2609.7,1.451]
[1723946179408,0.00470617,2609.8,2609.7,0.348]
[1723946180009,0.00470617,2609.8,2609.6,0.374]
[1723946180202,0.00470617,2609.8,2609.5,3.21354911]
[1723946180203,1.103,2609.7,2609.5,3.21354911]
[1723946180407,0.7406,2609.6,2609.5,0.00574911]
[1723946180618,1.1027,2609.6,2609.5,0.00574911]
[1723946180807,5.50942,2609.6,2609.5,0.00574911]
[1723946181529,10.50942,2609.6,2609.5,0.00574911]
[1723946183110,13.71722,2609.6,2609.5,0.00574911]
[1723946183514,8.71722,2609.6,2609.5,0.00574911]
[1723946183703,13.71722,2609.6,2609.5,0.00574911]
[1723946183904,8.71722,2609.6,2609.5,0.00574911]
[1723946184517,13.71722,2609.6,2609.5,0.00574911]
[1723946185719,8.71722,2609.6,2609.5,0.00574911]
[1723946185919,13.71722,2609.6,2609.5,0.00574911]
[1723946186518,8.71722,2609.6,2609.5,0.00574911]
[1723946186712,13.71722,2609.6,2609.5,0.00574911]
[1723946188025,8.71722,2609.6,2609.5,0.00574911]
[1723946188717,0.57477,2609.4,2609.0,1.103]
[1723946188930,1.103,2609.3,2609.0,1.103]
[1723946189113,0.352,2609.2,2609.0,1.103]
[1723946189314,0.7279,2609.2,2609.0,1.103]
[1723946191929,0.3772,2609.1,2609.0,1.103]
[1723946193813,0.3772,2609.1,2608.9,3.2078]
[1723946194016,0.57485,2609.0,2608.9,3.2078]
[1723946194214,5.88783,2609.1,2608.9,3.2078]
[1723946194426,2.05503,2609.1,2608.9,3.2078]
[1723946195019,5.88783,2609.1,2608.9,3.2078]
[1723946195221,0.95203,2609.1,2608.9,3.2078]
[1723946195517,0.95203,2609.1,2608.9,3.5844]
[1723946195724,4.78483,2609.1,2608.9,3.5844]
[1723946196729,3.7826,2609.3,2609.0,1.103]
[1723946196923,0.3539,2609.1,2609.0,1.103]
[1723946197228,0.3539,2609.1,2608.9,3.5844]
[1723946199038,0.3539,2609.1,2608.9,4.6874]
[1723946199233,0.3539,2609.1,2608.9,1.4796]
[1723946205039,0.3691,2609.2,2608.9,1.4796]
[1723946205333,0.3691,2609.2,2609.0,0.7107]
[1723946205729,4.3108,2609.3,2609.0,0.7107]
[1723946205730,3.2078,2609.3,2609.0,0.7107]
[1723946206227,3.2078,2609.3,2609.1,1.103]
[1723946206625,3.2078,2609.3,2609.2,0.3637]
[1723946207439,1.47254911,2609.4,2609.2,0.3637]
[1723946210334,1.6778,2609.3,2608.8,3.21354911]
[1723946210536,1.6778,2609.3,2608.9,1.103]
[1723946210743,2.0549,2609.3,2608.9,1.4494]
[1723946212829,2.0549,2609.3,2608.9,0.3464]
[1723946213034,2.0549,2609.3,2608.9,1.4494]
[1723946214828,2.0549,2609.3,2608.9,0.3464]
[1723946218525,2.0549,2609.3,2608.9,1.4494]
[1723946221041,1.4801,2609.3,2608.9,1.4494]
[1723946221639,1.103,2609.3,2608.9,1.4494]
[1723946221843,2.04732911,2609.4,2608.9,1.4494]
[1723946223639,1.47254911,2609.4,2609.0,1.103]
[1723946223947,1.47254911,2609.4,2609.1,0.3734]
[1723946224246,1.47254911,2609.4,2609.1,0.7268]
[1723946224545,1.47254911,2609.4,2609.2,0.3456]
[1723946229846,0.57485,2609.0,2608.9,1.00492497]
[1723946230151,0.57485,2609.0,2608.8,4.72024782]
[1723946230152,0.57503,2608.2,2608.0,0.43435571]
[1723946230363,0.57489,2608.8,2608.0,0.00491998]
[1723946230364,1.103,2608.1,2608.0,0.00491998]
[1723946230645,1.4541,2608.1,2608.0,0.00491998]
[1723946233044,2.02915,2608.1,2608.0,0.00491998]
[1723946233246,2.39325,2608.1,2608.0,0.00491998]
[1723946235544,1.8182,2608.1,2608.0,0.00491998]
[1723946240859,2.39325,2608.1,2608.0,0.00491998]
[1723946241448,1.8182,2608.1,2608.0,0.00491998]
[1723946246658,2.39325,2608.1,2608.0,0.00491998]
[1723946249166,9.43545,2608.1,2608.0,0.00491998]
[1723946249351,15.0105,2608.1,2608.0,0.00491998]
[1723946249556,15.0105,2608.1,2606.8,4.29288577]
[1723946249557,0.57527,2607.1,2606.8,3.2078]
[1723946249758,1.103,2606.9,2606.8,3.2078]
[1723946250460,1.10704313,2606.9,2606.8,0.00396519]
[1723946251872,5.51835313,2606.9,2606.8,0.00396519]
[1723946255163,10.51835313,2606.9,2606.8,0.00396519]
[1723946255363,5.51835313,2606.9,2606.8,0.00396519]
[1723946255565,10.51835313,2606.9,2606.8,0.00396519]
[1723946258062,5.51835313,2606.9,2606.8,0.00396519]
[1723946261062,4.41535313,2606.9,2606.8,0.00396519]
[1723946261262,5.51835313,2606.9,2606.8,0.00396519]
[1723946264568,10.51835313,2606.9,2606.8,0.00396519]
[1723946267479,4.41535313,2606.9,2606.8,0.00396519]
[1723946267679,5.51835313,2606.9,2606.8,0.00396519]
[1723946268582,1.68235313,2606.9,2606.8,0.00396519]
[1723946270377,5.51835313,2606.9,2606.8,0.00396519]
[1723946270973,0.00404313,2606.9,2606.8,0.00396519]
[1723946271177,1.10704313,2606.9,2606.8,0.00396519]
[1723946278186,0.00404313,2606.9,2606.8,0.00396519]
[1723946278486,1.10704313,2606.9,2606.8,0.00396519]
[1723946286681,0.00404313,2606.9,2606.8,0.00396519]
[1723946286988,1.10704313,2606.9,2606.8,0.00396519]
[1723946290982,0.00404313,2606.9,2606.8,3.83996519]
[1723946291188,0.00404313,2606.9,2606.8,8.83996519]
[1723946291392,0.00404313,2606.9,2606.8,9.20156519]
[1723946292992,0.00404313,2606.9,2606.8,4.20156519]
[1723946293492,0.00404313,2606.9,2606.8,14.28855565]
[1723946293685,0.00404313,2606.9,2606.8,13.32966565]
[1723946296302,0.00404313,2606.9,2606.8,14.28855565]
[1723946297595,0.00574911,2607.1,2606.8,14.28855565]
[1723946297596,0.00574911,2607.1,2606.9,0.95885]
[1723946297788,0.00574911,2607.1,2607.0,0.6939]
[1723946297989,0.00574911,2607.1,2607.0,4.5299]
[1723946298196,1.103,2607.5,2607.1,0.95876]
[1723946298395,1.103,2607.5,2607.2,0.365]
[1723946298598,1.107131,2607.5,2607.2,4.43918893]
[1723946298792,1.107131,2607.5,2607.2,8.27438893]
[1723946300695,1.107131,2607.5,2607.2,9.37738893]
[1723946301201,0.004131,2607.5,2607.2,9.37738893]
[1723946301999,0.004131,2607.5,2607.3,3.2078]
[1723946302502,0.004131,2607.5,2607.4,0.3742]
[1723946302911,0.004131,2607.5,2607.4,4.2094]
[1723946303599,0.004131,2607.5,2607.4,10.3124]
[1723946304697,0.004131,2607.5,2607.4,4.2094]
[1723946305599,0.004131,2607.5,2607.4,4.5588]
[1723946308097,0.004131,2607.5,2607.4,6.62047]
[1723946308406,0.004131,2607.5,2607.4,5.6618]
[1723946310909,0.004131,2607.5,2607.4,6.62047]
[1723946311101,0.00574911,2607.6,2607.5,0.95864]
[1723946311301,14.2368,2608.5,2607.5,0.95864]
[1723946311302,1.8515,2608.2,2607.7,0.95855]
[1723946311604,1.8515,2608.2,2607.8,1.8096]
[1723946312101,1.85422773,2608.2,2607.8,1.8096]
[1723946312603,0.00272773,2608.2,2608.1,4.3108]
[1723946312805,0.00272773,2608.2,2608.1,10.26922]
[1723946313112,0.00272773,2608.2,2608.1,18.30467321]
[1723946314310,0.00272773,2608.2,2608.1,17.34625321]
[1723946314897,0.00272773,2608.2,2608.1,18.30467321]
[1723946316012,0.00574911,2608.3,2608.1,17.34625321]
[1723946316215,0.00574911,2608.3,2608.2,3.8344]
[1723946316402,0.00574911,2608.3,2608.2,4.2066]
[1723946316602,0.00574911,2608.3,2608.2,13.24998522]
[1723946316800,0.01014865,2608.3,2608.2,8.24998522]
[1723946317110,0.01014865,2608.3,2608.2,4.2066]
[1723946317315,0.01014865,2608.3,2608.2,0.3722]
[1723946318496,0.01014865,2608.3,2608.2,4.82168352]
[1723946319218,0.01014865,2608.3,2608.2,5.19018352]
[1723946319512,0.01014865,2608.3,2608.2,6.29318352]
[1723946320404,0.01014865,2608.3,2608.2,7.25156352]
[1723946320709,0.7204,2608.7,2608.4,0.95829]
[1723946320913,0.7204,2608.7,2608.5,1.103]
[1723946321109,0.7204,2608.7,2608.5,5.34609813]
[1723946321308,0.7204,2608.7,2608.6,0.3565]
[1723946321814,0.72314216,2608.7,2608.6,0.3565]
[1723946322512,0.72314216,2608.7,2608.6,4.1901]
[1723946322711,1.82614216,2608.7,2608.4,3.2078]
[1723946323516,1.82614216,2608.7,2608.4,4.1661]
[1723946324105,1.82614216,2608.7,2608.4,0.9583]
[1723946324407,1.82614216,2608.7,2608.4,4.1661]
[1723946324820,0.72314216,2608.7,2608.5,1.103]
[1723946329905,0.72314216,2608.7,2608.5,2.06126]
[1723946331018,0.72314216,2608.7,2608.5,1.103]
[1723946334110,0.72314216,2608.7,2608.5,2.06126]
[1723946334419,0.72314216,2608.7,2608.5,1.103]
[1723946335824,0.72314216,2608.7,2608.5,2.06126]
[1723946338814,0.72314216,2608.7,2608.5,5.89486]
[1723946340420,0.72314216,2608.7,2608.6,2.06123]
[1723946340622,0.72314216,2608.7,2608.6,5.89483]
[1723946341921,0.00274216,2608.7,2608.6,5.89483]
[1723946343213,0.00274216,2608.7,2608.6,4.9366]
[1723946343413,0.00274216,2608.7,2608.6,1.103]
[1723946343914,0.00274216,2608.7,2608.5,2.06127]
[1723946344514,0.00274216,2608.7,2608.5,1.103]
[1723946344924,0.00274216,2608.7,2608.5,2.06127]
[1723946347620,0.00274216,2608.7,2608.5,1.103]
[1723946347816,0.00274216,2608.7,2608.5,2.06125]
[1723946348929,0.00274216,2608.7,2608.6,1.103]
[1723946349114,0.00274216,2608.7,2608.6,2.06123]
[1723946349823,0.00274216,2608.7,2608.6,5.89483]
[1723946350750,0.00274216,2608.7,2608.6,10.19475746]
[1723946350921,0.00274216,2608.7,2608.6,11.19588318]
[1723946351233,0.00274216,2608.7,2608.6,11.19628948]
[1723946351425,0.00274216,2608.7,2608.6,13.11275759]
[1723946351622,0.00274216,2608.7,2608.6,13.11276083]
[1723946351929,0.00274216,2608.7,2608.6,12.11129373]
[1723946352734,0.00274216,2608.7,2608.6,12.11130241]
[1723946352922,0.00274216,2608.7,2608.6,12.11131572]
[1723946353123,0.00274216,2608.7,2608.6,13.61801443]
[1723946353323,0.00274216,2608.7,2608.6,12.11131572]
[1723946353628,0.00274216,2608.7,2608.6,13.61801443]
[1723946354018,0.00274216,2608.7,2608.6,12.11131572]
[1723946354227,0.00274216,2608.7,2608.6,13.61801443]
[1723946354844,0.00274216,2608.7,2608.6,12.11131572]
[1723946355034,0.00274216,2608.7,2608.6,13.61801443]
[1723946356130,0.00274216,2608.7,2608.6,12.11131572]
[1723946358434,0.00274216,2608.7,2608.6,12.11141124]
[1723946359819,0.00274216,2608.7,2608.6,14.11208951]
[1723946360834,0.00274216,2608.7,2608.6,17.94519861]
[1723946361741,0.00274216,2608.7,2608.6,21.15299861]
[1723946363340,0.00274216,2608.7,2608.6,21.16074394]
[1723946364143,0.00274216,2608.7,2608.6,19.15232034]
[1723946364344,0.00274216,2608.7,2608.6,15.94452034]
[1723946365032,0.00274216,2608.7,2608.6,19.15232034]
[1723946365539,0.00274216,2608.7,2608.6,15.94452034]
[1723946365738,0.00274216,2608.7,2608.6,19.15232034]
[1723946365934,0.00274216,2608.7,2608.6,21.16109086]
[1723946366134,0.00274216,2608.7,2608.6,19.15232034]
[1723946366840,0.00274216,2608.7,2608.6,20.05832644]
[1723946367044,0.00274216,2608.7,2608.6,21.16136027]
[1723946367236,0.00274216,2608.7,2608.6,12.53642117]
[1723946367740,0.00274216,2608.7,2608.6,12.03437512]
[1723946368043,0.00274216,2608.7,2608.6,4.52664766]
[1723946368236,0.00274216,2608.7,2608.6,3.42364766]
[1723946368431,0.00274216,2608.7,2608.5,1.00469661]
[1723946368636,0.72934216,2608.7,2608.5,1.00469661]
[1723946368846,0.72934216,2608.7,2608.5,2.10769661]
[1723946369938,0.72934216,2608.7,2608.6,1.00469661]
[1723946370540,0.72934216,2608.7,2608.6,2.10769661]
[1723946370845,0.72934216,2608.7,2608.6,7.23227358]
[1723946371053,0.72934216,2608.7,2608.6,7.73448157]
[1723946371247,0.36774216,2608.7,2608.6,7.73448157]
[1723946371551,0.36774216,2608.7,2608.6,6.22757697]
[1723946371745,0.36774216,2608.7,2608.6,7.73448157]
[1723946371941,0.36774216,2608.7,2608.6,6.22757697]
[1723946372146,0.36774216,2608.7,2608.6,5.31541224]
[1723946372341,0.36774216,2608.7,2608.6,8.69270178]
[1723946372539,0.36774216,2608.7,2608.6,7.18579718]
[1723946373146,0.00274216,2608.7,2608.6,7.18579718]
[1723946373548,0.00274216,2608.7,2608.6,9.19483711]
[1723946375651,0.00274216,2608.7,2608.6,7.18579718]
[1723946376841,0.00274216,2608.7,2608.6,7.18562579]
[1723946379148,0.00274216,2608.7,2608.6,11.01922579]
[1723946379357,0.00274216,2608.7,2608.6,15.30953081]
[1723946379647,0.00274216,2608.7,2608.6,17.31857074]
[1723946379947,0.00274216,2608.7,2608.6,21.151849]
[1723946380154,0.00274216,2608.7,2608.6,19.14259862]
[1723946380547,0.00274216,2608.7,2608.6,21.15188848]
[1723946381148,0.00274216,2608.7,2608.6,21.15193555]
[1723946381347,0.00274216,2608.7,2608.6,21.15192709]
[1723946381548,0.00274216,2608.7,2608.6,21.15183196]
[1723946381845,0.00274216,2608.7,2608.6,17.94403196]
[1723946382347,0.00274216,2608.7,2608.6,19.14250349]
[1723946382547,0.00274216,2608.7,2608.6,15.30945784]
[1723946382756,0.00274216,2608.7,2608.6,19.14264024]
[1723946384156,0.00274216,2608.7,2608.6,21.15193241]
[1723946384855,0.00274216,2608.7,2608.6,17.94413241]
[1723946385055,0.00274216,2608.7,2608.6,21.15193241]
[1723946385556,0.00274216,2608.7,2608.6,17.94413241]
[1723946385743,0.00015546,2608.7,2608.6,19.142568]
[1723946386859,0.00015546,2608.7,2608.6,15.934768]
[1723946387060,0.00015546,2608.7,2608.6,19.142568]
[1723946388953,0.00015546,2608.7,2608.6,21.64341584]
[1723946390051,0.00015546,2608.7,2608.6,18.43561584]
[1723946390255,0.00015546,2608.7,2608.6,21.64341584]
[1723946390763,0.00015546,2608.7,2608.6,21.64335277]
[1723946392060,0.00015546,2608.7,2608.6,18.43555277]
[1723946392261,0.00015546,2608.7,2608.6,21.64335277]
[1723946393552,0.00015546,2608.7,2608.6,18.43555277]
[1723946393753,0.00015546,2608.7,2608.6,21.64335277]
[1723946394153,0.00015546,2608.7,2608.6,18.43555277]
[1723946395068,0.00015546,2608.7,2608.6,21.64335277]
[1723946395359,0.00015546,2608.7,2608.6,18.43557476]
[1723946395771,0.00015546,2608.7,2608.6,21.64337476]
[1723946400058,0.00015546,2608.7,2608.6,21.64300849]
[1723946402366,0.00015546,2608.7,2608.6,19.14216065]
[1723946402569,0.00015546,2608.7,2608.6,21.64300849]
[1723946403364,0.00015546,2608.7,2608.6,21.64343203]
[1723946406489,0.00015546,2608.7,2608.6,17.80983203]
[1723946407663,0.00015546,2608.7,2608.6,15.89327636]
[1723946407863,0.00015546,2608.7,2608.6,17.80982311]
[1723946408370,0.00015546,2608.7,2608.6,15.30897527]
[1723946408672,0.00015546,2608.7,2608.6,16.3607772]
[1723946408865,0.00015546,2608.7,2608.6,15.25777994]
[1723946409066,0.00015546,2608.7,2608.6,7.30985177]
[1723946409764,5.00015546,2608.7,2608.6,1.91654675]